[Event "Titled Tuesday Blitz April 11 Early 2023"]
[White "Kabilov, Amin"]
[Black "Kiseleva, Arina"]
[WhiteFideId "14700859"]
[BlackFideId "4164989"]
[WhiteElo "2110"]
[BlackElo "1708"]
[Result "1-0"]
[Round "07"]
[TimeControl "180+2"]
[Date "2023.04.11"]
[WhiteClock "0:00:07"]
[BlackClock "0:00:16"]

1. d4 {[%clk 0:02:36]}  Nf6 {[%clk 0:02:57]} 2. c4 {[%clk 0:02:35]}  e6 {[%clk 0:02:58]} 3. Nc3 {[%clk 0:02:35]}  Bb4 {[%clk 0:02:58]} 4. e3 {[%clk 0:02:30]}  O-O {[%clk 0:02:57]} 5. Bd3 {[%clk 0:02:30]}  Re8 {[%clk 0:02:55]} 6. Ne2 {[%clk 0:02:30]}  d5 {[%clk 0:02:55]} 7. O-O {[%clk 0:02:28]}  a6 {[%clk 0:02:37]} 8. a3 {[%clk 0:02:21]}  Bf8 {[%clk 0:02:36]} 9. b4 {[%clk 0:02:17]}  dxc4 {[%clk 0:02:32]} 10. Bxc4 {[%clk 0:02:17]}  b5 {[%clk 0:02:32]} 11. Bd3 {[%clk 0:02:17]}  Bb7 {[%clk 0:02:33]} 12. e4 {[%clk 0:02:12]}  Nc6 {[%clk 0:02:17]} 13. e5 {[%clk 0:02:08]}  Nd5 {[%clk 0:02:17]} 14. Ne4 {[%clk 0:02:05]}  Nb6 {[%clk 0:02:13]} 15. Ng5 {[%clk 0:01:12]}  g6 {[%clk 0:02:03]} 16. Ne4 {[%clk 0:01:09]}  Bg7 {[%clk 0:01:57]} 17. Bg5 {[%clk 0:01:05]}  Qd5 {[%clk 0:01:44]} 18. Nc5 {[%clk 0:00:48]}  Nxe5 {[%clk 0:01:22]} 19. Be4 {[%clk 0:00:44]}  Nf3+ {[%clk 0:01:11]} 20. Bxf3 {[%clk 0:00:42]}  Qxg5 {[%clk 0:01:09]} 21. Bxb7 {[%clk 0:00:37]}  Rad8 {[%clk 0:01:07]} 22. Bc6 {[%clk 0:00:36]}  Re7 {[%clk 0:01:04]} 23. Qc1 {[%clk 0:00:24]}  Qxc1 {[%clk 0:00:55]} 24. Raxc1 {[%clk 0:00:22]}  Bxd4 {[%clk 0:00:55]} 25. Nxd4 {[%clk 0:00:22]}  Rxd4 {[%clk 0:00:54]} 26. Nxa6 {[%clk 0:00:22]}  Nc4 {[%clk 0:00:52]} 27. Bxb5 {[%clk 0:00:20]}  Nxa3 {[%clk 0:00:51]} 28. Be2 {[%clk 0:00:17]}  Rd6 {[%clk 0:00:50]} 29. b5 {[%clk 0:00:17]}  Rd2 {[%clk 0:00:47]} 30. Rfe1 {[%clk 0:00:16]}  Red7 {[%clk 0:00:44]} 31. Bf1 {[%clk 0:00:14]}  Nc2 {[%clk 0:00:44]} 32. Re4 {[%clk 0:00:13]}  f5 {[%clk 0:00:43]} 33. Rc4 {[%clk 0:00:13]}  Na3 {[%clk 0:00:41]} 34. Rxc7 {[%clk 0:00:13]}  Rd1 {[%clk 0:00:40]} 35. Rxd7 {[%clk 0:00:13]}  Rxc1 {[%clk 0:00:40]} 36. g3 {[%clk 0:00:12]}  Nxb5 {[%clk 0:00:39]} 37. Kg2 {[%clk 0:00:12]}  Nc3 {[%clk 0:00:37]} 38. Bc4 {[%clk 0:00:11]}  Re1 {[%clk 0:00:35]} 39. Nc7 {[%clk 0:00:08]}  Re4 {[%clk 0:00:29]} 40. Bxe6+ {[%clk 0:00:08]}  Kh8 {[%clk 0:00:26]} 41. Bb3 {[%clk 0:00:07]}  h5 {[%clk 0:00:23]} 42. Ne6 {[%clk 0:00:07]}  Ne2 {[%clk 0:00:21]} 43. Nf8 {[%clk 0:00:07]}  Rg4 {[%clk 0:00:16]} 44. Rh7# {[%clk 0:00:07]} 1-0


[Site "https://www.chess.com"]

[Event "Titled Tuesday Blitz April 11 Early 2023"]
[White "Dylag, Emilia"]
[Black "Rottenwohrer Suarez, Juan"]
[WhiteFideId "21805172"]
[BlackFideId "32068182"]
[WhiteElo "1878"]
[BlackElo "2174"]
[Result "0-1"]
[Round "07"]
[TimeControl "180+2"]
[Date "2023.04.11"]
[WhiteClock "0:00:04"]
[BlackClock "0:00:24"]

1. d4 {[%clk 0:03:00]}  Nf6 {[%clk 0:02:53]} 2. c4 {[%clk 0:02:58]}  g6 {[%clk 0:02:53]} 3. g3 {[%clk 0:02:56]}  Bg7 {[%clk 0:02:53]} 4. Bg2 {[%clk 0:02:56]}  O-O {[%clk 0:02:54]} 5. Nf3 {[%clk 0:02:56]}  b6 {[%clk 0:02:54]} 6. O-O {[%clk 0:02:56]}  Bb7 {[%clk 0:02:55]} 7. Nc3 {[%clk 0:02:55]}  Ne4 {[%clk 0:02:55]} 8. Bf4 {[%clk 0:02:49]}  Nxc3 {[%clk 0:02:54]} 9. bxc3 {[%clk 0:02:49]}  c5 {[%clk 0:02:55]} 10. a4 {[%clk 0:02:22]}  Nc6 {[%clk 0:02:51]} 11. Ne5 {[%clk 0:02:15]}  Na5 {[%clk 0:02:31]} 12. Bxb7 {[%clk 0:01:32]}  Nxb7 {[%clk 0:02:32]} 13. dxc5 {[%clk 0:01:23]}  Nxc5 {[%clk 0:02:29]} 14. Qd5 {[%clk 0:01:23]}  d6 {[%clk 0:02:05]} 15. Nc6 {[%clk 0:01:15]}  Qd7 {[%clk 0:01:58]} 16. Nxe7+ {[%clk 0:01:04]}  Qxe7 {[%clk 0:01:58]} 17. Bxd6 {[%clk 0:01:05]}  Qxe2 {[%clk 0:01:57]} 18. Bxf8 {[%clk 0:01:05]}  Rxf8 {[%clk 0:01:57]} 19. Rfe1 {[%clk 0:01:05]}  Qc2 {[%clk 0:01:51]} 20. a5 {[%clk 0:01:04]}  Nb3 {[%clk 0:01:30]} 21. Rad1 {[%clk 0:00:58]}  Bxc3 {[%clk 0:01:24]} 22. Re7 {[%clk 0:00:55]}  bxa5 {[%clk 0:01:07]} 23. c5 {[%clk 0:00:43]}  Nxc5 {[%clk 0:01:07]} 24. Rc7 {[%clk 0:00:36]}  Bb4 {[%clk 0:01:02]} 25. Qd6 {[%clk 0:00:27]}  Ne4 {[%clk 0:00:43]} 26. Qd3 {[%clk 0:00:10]}  Qxc7 {[%clk 0:00:37]} 27. Qxe4 {[%clk 0:00:08]}  Rc8 {[%clk 0:00:27]} 28. Rb1 {[%clk 0:00:07]}  Qc2 {[%clk 0:00:26]} 29. Qxc2 {[%clk 0:00:03]}  Rxc2 {[%clk 0:00:25]} 30. Rd1 {[%clk 0:00:04]}  Bc5 {[%clk 0:00:25]} 31. Rd8+ {[%clk 0:00:04]}  Kg7 {[%clk 0:00:24]} 32. Kf1 {[%clk 0:00:03]}  Rxf2+ {[%clk 0:00:23]} 33. Ke1 {[%clk 0:00:03]}  Rxh2 {[%clk 0:00:24]} 34. Rd5 {[%clk 0:00:03]}  Bb6 {[%clk 0:00:24]} 35. Rb5 {[%clk 0:00:03]}  a4 {[%clk 0:00:24]} 36. Kf1 {[%clk 0:00:03]}  a3 {[%clk 0:00:24]} 37. Rb3 {[%clk 0:00:02]}  a2 {[%clk 0:00:24]} 38. Ra3 {[%clk 0:00:03]}  a1=Q+ {[%clk 0:00:23]} 39. Rxa1 {[%clk 0:00:03]}  Rh1+ {[%clk 0:00:24]} 40. Kg2 {[%clk 0:00:04]}  Rxa1 {[%clk 0:00:25]} 41. Kh3 {[%clk 0:00:04]}  h5 {[%clk 0:00:24]} 0-1


[Site "https://www.chess.com"]

[Event "Titled Tuesday Blitz April 11 Early 2023"]
[White "Okike, David"]
[Black "Sailer, Mike"]
[WhiteFideId "8500134"]
[BlackFideId "2012901"]
[WhiteElo "2232"]
[BlackElo "2109"]
[Result "0-1"]
[Round "07"]
[TimeControl "180+2"]
[Date "2023.04.11"]
[WhiteClock "0:01:19"]
[BlackClock "0:00:04"]

1. e4 {[%clk 0:03:00]}  d5 {[%clk 0:03:00]} 2. exd5 {[%clk 0:03:00]}  Qxd5 {[%clk 0:03:00]} 3. Nc3 {[%clk 0:02:59]}  Qd6 {[%clk 0:03:01]} 4. d4 {[%clk 0:02:59]}  Nf6 {[%clk 0:03:02]} 5. Nge2 {[%clk 0:02:59]}  c6 {[%clk 0:03:02]} 6. a3 {[%clk 0:02:59]}  Bf5 {[%clk 0:03:03]} 7. Bf4 {[%clk 0:03:00]}  Qd8 {[%clk 0:03:03]} 8. Qd2 {[%clk 0:02:59]}  e6 {[%clk 0:03:03]} 9. f3 {[%clk 0:02:59]}  Bd6 {[%clk 0:03:04]} 10. g4 {[%clk 0:02:57]}  Bg6 {[%clk 0:03:03]} 11. Bxd6 {[%clk 0:02:57]}  Qxd6 {[%clk 0:03:04]} 12. Nf4 {[%clk 0:02:58]}  Nbd7 {[%clk 0:03:00]} 13. h4 {[%clk 0:02:57]}  Nd5 {[%clk 0:03:00]} 14. Ncxd5 {[%clk 0:02:54]}  cxd5 {[%clk 0:02:47]} 15. h5 {[%clk 0:02:53]}  Bxc2 {[%clk 0:02:39]} 16. Bb5 {[%clk 0:02:35]}  Bb3 {[%clk 0:02:11]} 17. h6 {[%clk 0:02:29]}  g6 {[%clk 0:01:59]} 18. Ne2 {[%clk 0:02:23]}  O-O {[%clk 0:01:50]} 19. Qc3 {[%clk 0:02:18]}  Bc4 {[%clk 0:01:45]} 20. Bxc4 {[%clk 0:02:17]}  Rac8 {[%clk 0:01:38]} 21. b3 {[%clk 0:02:17]}  b5 {[%clk 0:01:35]} 22. Qb4 {[%clk 0:02:07]}  Qxb4+ {[%clk 0:01:30]} 23. axb4 {[%clk 0:02:07]}  bxc4 {[%clk 0:01:13]} 24. Rxa7 {[%clk 0:02:07]}  Nb8 {[%clk 0:00:50]} 25. bxc4 {[%clk 0:01:56]}  Rxc4 {[%clk 0:00:50]} 26. Rb7 {[%clk 0:01:56]}  Nc6 {[%clk 0:00:48]} 27. b5 {[%clk 0:01:56]}  Nxd4 {[%clk 0:00:48]} 28. Rf1 {[%clk 0:01:49]}  Nxe2 {[%clk 0:00:34]} 29. Kxe2 {[%clk 0:01:49]}  Rb4 {[%clk 0:00:30]} 30. Rc1 {[%clk 0:01:47]}  Rb2+ {[%clk 0:00:17]} 31. Ke3 {[%clk 0:01:46]}  Rb3+ {[%clk 0:00:16]} 32. Kf2 {[%clk 0:01:46]}  e5 {[%clk 0:00:06]} 33. Rc5 {[%clk 0:01:42]}  Rd3 {[%clk 0:00:06]} 34. Ke2 {[%clk 0:01:40]}  e4 {[%clk 0:00:06]} 35. fxe4 {[%clk 0:01:39]}  dxe4 {[%clk 0:00:07]} 36. Re5 {[%clk 0:01:39]}  Rh3 {[%clk 0:00:06]} 37. g5 {[%clk 0:01:38]}  Rh4 {[%clk 0:00:05]} 38. Ke3 {[%clk 0:01:38]}  Rg4 {[%clk 0:00:06]} 39. b6 {[%clk 0:01:37]}  Ra8 {[%clk 0:00:04]} 40. Ree7 {[%clk 0:01:30]}  Ra3+ {[%clk 0:00:04]} 41. Kd4 {[%clk 0:01:27]}  e3+ {[%clk 0:00:03]} 42. Kc5 {[%clk 0:01:26]}  Ra5+ {[%clk 0:00:03]} 43. Kd6 {[%clk 0:01:23]}  Rd4+ {[%clk 0:00:03]} 44. Kc7 {[%clk 0:01:23]}  Rc5+ {[%clk 0:00:02]} 45. Kb8 {[%clk 0:01:20]}  Rd8+ {[%clk 0:00:03]} 46. Ka7 {[%clk 0:01:19]}  Ra5# {[%clk 0:00:04]} 0-1


[Site "https://www.chess.com"]

[Event "Titled Tuesday Blitz April 11 Early 2023"]
[White "Aung Thant Zin"]
[Black "Valle Maytin, Luis Enrique"]
[WhiteFideId "13000063"]
[BlackFideId "3503666"]
[WhiteElo "2278"]
[BlackElo "2225"]
[Result "0-1"]
[Round "07"]
[TimeControl "180+2"]
[Date "2023.04.11"]
[WhiteClock "0:00:01"]
[BlackClock "0:00:26"]

1. e4 {[%clk 0:03:00]}  c5 {[%clk 0:02:53]} 2. Nf3 {[%clk 0:03:00]}  Nc6 {[%clk 0:02:53]} 3. Bb5 {[%clk 0:02:59]}  g6 {[%clk 0:02:52]} 4. O-O {[%clk 0:02:58]}  Bg7 {[%clk 0:02:52]} 5. c3 {[%clk 0:02:58]}  e5 {[%clk 0:02:51]} 6. d4 {[%clk 0:02:57]}  cxd4 {[%clk 0:02:50]} 7. cxd4 {[%clk 0:02:58]}  Nxd4 {[%clk 0:02:50]} 8. Nxd4 {[%clk 0:02:57]}  exd4 {[%clk 0:02:50]} 9. e5 {[%clk 0:02:56]}  Qb6 {[%clk 0:02:48]} 10. Na3 {[%clk 0:02:54]}  Ne7 {[%clk 0:02:42]} 11. Nc4 {[%clk 0:02:52]}  Qc5 {[%clk 0:02:28]} 12. Nd6+ {[%clk 0:02:50]}  Kf8 {[%clk 0:02:28]} 13. Bc4 {[%clk 0:02:46]}  Bxe5 {[%clk 0:02:21]} 14. Nxf7 {[%clk 0:02:24]}  Qxc4 {[%clk 0:02:21]} 15. Nxe5 {[%clk 0:02:24]}  Qd5 {[%clk 0:02:16]} 16. Bh6+ {[%clk 0:02:13]}  Ke8 {[%clk 0:02:15]} 17. Re1 {[%clk 0:01:45]}  b6 {[%clk 0:02:03]} 18. Bg5 {[%clk 0:01:40]}  Rg8 {[%clk 0:01:26]} 19. f4 {[%clk 0:00:40]}  Bb7 {[%clk 0:01:20]} 20. Qd2 {[%clk 0:00:34]}  Nf5 {[%clk 0:01:03]} 21. Nf3+ {[%clk 0:00:19]}  Kf7 {[%clk 0:00:55]} 22. g4 {[%clk 0:00:18]}  Ne3 {[%clk 0:00:53]} 23. Qxd4 {[%clk 0:00:06]}  Qxd4 {[%clk 0:00:38]} 24. Nxd4 {[%clk 0:00:06]}  Nd5 {[%clk 0:00:35]} 25. Re5 {[%clk 0:00:04]}  Rge8 {[%clk 0:00:34]} 26. Rae1 {[%clk 0:00:04]}  d6 {[%clk 0:00:30]} 27. Rxe8 {[%clk 0:00:02]}  Rxe8 {[%clk 0:00:30]} 28. Rxe8 {[%clk 0:00:01]}  Kxe8 {[%clk 0:00:31]} 29. f5 {[%clk 0:00:01]}  Kf7 {[%clk 0:00:26]} 0-1


[Site "https://www.chess.com"]

[Event "Titled Tuesday Blitz April 11 Early 2023"]
[White "Namitbir Singh Walia"]
[Black "Zampronha, Wladimir Camilo"]
[WhiteFideId "35071068"]
[BlackFideId "2103087"]
[WhiteElo "2239"]
[BlackElo "2176"]
[Result "1-0"]
[Round "07"]
[TimeControl "180+2"]
[Date "2023.04.11"]
[WhiteClock "0:00:03"]
[BlackClock "0:00:01"]

1. e4 {[%clk 0:02:46]}  c5 {[%clk 0:02:59]} 2. Nf3 {[%clk 0:02:46]}  e6 {[%clk 0:03:00]} 3. d4 {[%clk 0:02:47]}  cxd4 {[%clk 0:03:00]} 4. Nxd4 {[%clk 0:02:48]}  Nc6 {[%clk 0:03:00]} 5. Nb5 {[%clk 0:02:48]}  d6 {[%clk 0:02:54]} 6. c4 {[%clk 0:02:48]}  Nf6 {[%clk 0:02:52]} 7. N1c3 {[%clk 0:02:48]}  a6 {[%clk 0:02:49]} 8. Na3 {[%clk 0:02:48]}  Be7 {[%clk 0:02:50]} 9. Be2 {[%clk 0:02:48]}  O-O {[%clk 0:02:50]} 10. Be3 {[%clk 0:02:48]}  Nb8 {[%clk 0:02:50]} 11. O-O {[%clk 0:02:48]}  Nbd7 {[%clk 0:02:51]} 12. Rc1 {[%clk 0:02:48]}  Qc7 {[%clk 0:02:51]} 13. Qd2 {[%clk 0:02:45]}  b6 {[%clk 0:02:52]} 14. Rfd1 {[%clk 0:02:45]}  Bb7 {[%clk 0:02:53]} 15. f3 {[%clk 0:02:46]}  Rac8 {[%clk 0:02:52]} 16. Bf1 {[%clk 0:02:41]}  Rfe8 {[%clk 0:02:52]} 17. g4 {[%clk 0:02:35]}  h6 {[%clk 0:02:43]} 18. h4 {[%clk 0:02:33]}  Nh7 {[%clk 0:02:40]} 19. g5 {[%clk 0:02:33]}  hxg5 {[%clk 0:02:41]} 20. hxg5 {[%clk 0:02:34]}  Ne5 {[%clk 0:02:25]} 21. Qg2 {[%clk 0:02:33]}  Nxg5 {[%clk 0:02:08]} 22. Be2 {[%clk 0:02:27]}  Nh7 {[%clk 0:01:54]} 23. Qf2 {[%clk 0:02:07]}  Nd7 {[%clk 0:01:42]} 24. Kg2 {[%clk 0:02:05]}  f5 {[%clk 0:01:34]} 25. Rh1 {[%clk 0:02:05]}  fxe4 {[%clk 0:01:27]} 26. fxe4 {[%clk 0:01:52]}  Rf8 {[%clk 0:01:25]} 27. Qg3 {[%clk 0:01:51]}  Ndf6 {[%clk 0:01:08]} 28. Qh3 {[%clk 0:01:44]}  Qd7 {[%clk 0:00:52]} 29. Bg4 {[%clk 0:01:39]}  Kf7 {[%clk 0:00:31]} 30. Rcf1 {[%clk 0:01:32]}  Rh8 {[%clk 0:00:29]} 31. Nd5 {[%clk 0:00:57]}  Bxd5 {[%clk 0:00:26]} 32. cxd5 {[%clk 0:00:54]}  Ng5 {[%clk 0:00:27]} 33. Bh5+ {[%clk 0:00:51]}  g6 {[%clk 0:00:26]} 34. Bxg5 {[%clk 0:00:29]}  Rxh5 {[%clk 0:00:24]} 35. Qg3 {[%clk 0:00:25]}  Rxh1 {[%clk 0:00:19]} 36. Rxh1 {[%clk 0:00:25]}  exd5 {[%clk 0:00:18]} 37. Rf1 {[%clk 0:00:16]}  dxe4 {[%clk 0:00:14]} 38. Qh4 {[%clk 0:00:15]}  Qe6 {[%clk 0:00:13]} 39. Qh7+ {[%clk 0:00:16]}  Kf8 {[%clk 0:00:12]} 40. Qh8+ {[%clk 0:00:08]}  Kf7 {[%clk 0:00:11]} 41. Qh7+ {[%clk 0:00:08]}  Ke8 {[%clk 0:00:10]} 42. Qxg6+ {[%clk 0:00:05]}  Kd7 {[%clk 0:00:09]} 43. Rxf6 {[%clk 0:00:03]}  Qg4+ {[%clk 0:00:08]} 44. Kf2 {[%clk 0:00:03]}  Bxf6 {[%clk 0:00:06]} 45. Qf7+ {[%clk 0:00:03]}  Kc6 {[%clk 0:00:05]} 46. Qxf6 {[%clk 0:00:03]}  e3+ {[%clk 0:00:03]} 47. Bxe3 {[%clk 0:00:02]}  Re8 {[%clk 0:00:02]} 48. Qc3+ {[%clk 0:00:02]}  Kb7 {[%clk 0:00:01]} 49. Qd4 {[%clk 0:00:03]} 1-0


[Site "https://www.chess.com"]

[Event "Titled Tuesday Blitz April 11 Early 2023"]
[White "sebastianmarinp"]
[Black "Moussard, Jules"]
[BlackFideId "642908"]
[WhiteElo "2277"]
[BlackElo "2610"]
[Result "0-1"]
[Round "07"]
[TimeControl "180+2"]
[Date "2023.04.11"]
[WhiteClock "0:01:12"]
[BlackClock "0:01:11"]

1. e4 {[%clk 0:03:00]}  c6 {[%clk 0:02:25]} 2. d4 {[%clk 0:02:58]}  d5 {[%clk 0:02:25]} 3. e5 {[%clk 0:02:58]}  Bf5 {[%clk 0:02:24]} 4. Nf3 {[%clk 0:02:58]}  e6 {[%clk 0:02:24]} 5. Be2 {[%clk 0:02:58]}  Ne7 {[%clk 0:02:22]} 6. O-O {[%clk 0:02:57]}  h6 {[%clk 0:02:23]} 7. a4 {[%clk 0:02:57]}  Nd7 {[%clk 0:02:22]} 8. a5 {[%clk 0:02:56]}  a6 {[%clk 0:02:22]} 9. c3 {[%clk 0:02:55]}  c5 {[%clk 0:02:21]} 10. Be3 {[%clk 0:02:43]}  Nc6 {[%clk 0:02:16]} 11. c4 {[%clk 0:02:35]}  dxc4 {[%clk 0:02:01]} 12. Na3 {[%clk 0:02:34]}  Nxa5 {[%clk 0:01:58]} 13. d5 {[%clk 0:02:13]}  exd5 {[%clk 0:01:43]} 14. Qxd5 {[%clk 0:02:14]}  Nb6 {[%clk 0:01:43]} 15. Qxd8+ {[%clk 0:02:02]}  Rxd8 {[%clk 0:01:44]} 16. Rad1 {[%clk 0:01:44]}  Be7 {[%clk 0:01:40]} 17. Rxd8+ {[%clk 0:01:40]}  Kxd8 {[%clk 0:01:41]} 18. Nd2 {[%clk 0:01:36]}  Be6 {[%clk 0:01:27]} 19. f4 {[%clk 0:01:36]}  g6 {[%clk 0:01:27]} 20. Ne4 {[%clk 0:01:34]}  Nb3 {[%clk 0:01:26]} 21. g4 {[%clk 0:01:28]}  Nd4 {[%clk 0:01:17]} 22. Bd1 {[%clk 0:01:17]}  Kc7 {[%clk 0:01:12]} 23. f5 {[%clk 0:01:16]}  gxf5 {[%clk 0:01:12]} 24. gxf5 {[%clk 0:01:13]}  Rg8+ {[%clk 0:01:12]} 25. Kh1 {[%clk 0:01:12]}  Bd5 {[%clk 0:01:11]} 0-1


[Site "https://www.chess.com"]

[Event "Titled Tuesday Blitz April 11 Early 2023"]
[White "Lenaerts, Lennert"]
[Black "Jiganchine, Roman"]
[WhiteFideId "211435"]
[BlackFideId "2603667"]
[WhiteElo "2334"]
[BlackElo "2262"]
[Result "1/2-1/2"]
[Round "07"]
[TimeControl "180+2"]
[Date "2023.04.11"]
[WhiteClock "0:01:47"]
[BlackClock "0:00:08"]

1. d4 {[%clk 0:03:00]}  d5 {[%clk 0:02:59]} 2. c4 {[%clk 0:03:01]}  e6 {[%clk 0:02:59]} 3. Nc3 {[%clk 0:03:01]}  Nf6 {[%clk 0:02:59]} 4. cxd5 {[%clk 0:03:01]}  Nxd5 {[%clk 0:02:59]} 5. e4 {[%clk 0:03:01]}  Nxc3 {[%clk 0:02:58]} 6. bxc3 {[%clk 0:03:02]}  c5 {[%clk 0:02:58]} 7. Rb1 {[%clk 0:03:03]}  g6 {[%clk 0:02:53]} 8. Nf3 {[%clk 0:02:55]}  Bg7 {[%clk 0:02:53]} 9. h4 {[%clk 0:02:55]}  Nc6 {[%clk 0:02:32]} 10. Be3 {[%clk 0:02:54]}  Qa5 {[%clk 0:02:25]} 11. Qd2 {[%clk 0:02:54]}  cxd4 {[%clk 0:02:23]} 12. cxd4 {[%clk 0:02:55]}  Qxd2+ {[%clk 0:02:23]} 13. Kxd2 {[%clk 0:02:56]}  O-O {[%clk 0:02:18]} 14. Bb5 {[%clk 0:02:56]}  Rd8 {[%clk 0:02:17]} 15. Bxc6 {[%clk 0:02:54]}  bxc6 {[%clk 0:02:17]} 16. Rhc1 {[%clk 0:02:55]}  e5 {[%clk 0:02:05]} 17. Rxc6 {[%clk 0:02:53]}  exd4 {[%clk 0:02:05]} 18. Bg5 {[%clk 0:02:54]}  Re8 {[%clk 0:01:58]} 19. e5 {[%clk 0:02:51]}  Be6 {[%clk 0:01:53]} 20. Nxd4 {[%clk 0:02:46]}  Bxa2 {[%clk 0:01:42]} 21. Ra1 {[%clk 0:02:32]}  Bxe5 {[%clk 0:01:35]} 22. Rxa2 {[%clk 0:02:32]}  Bxd4 {[%clk 0:01:34]} 23. Be3 {[%clk 0:02:26]}  Rad8 {[%clk 0:01:21]} 24. Ke2 {[%clk 0:02:25]}  Re4 {[%clk 0:00:51]} 25. Kf3 {[%clk 0:02:13]}  Rxh4 {[%clk 0:00:40]} 26. Bxd4 {[%clk 0:02:12]}  Rhxd4 {[%clk 0:00:35]} 27. Rxa7 {[%clk 0:02:13]}  Rd3+ {[%clk 0:00:32]} 28. Ke2 {[%clk 0:02:10]}  Rd2+ {[%clk 0:00:31]} 29. Ke3 {[%clk 0:02:10]}  R8d3+ {[%clk 0:00:30]} 30. Ke4 {[%clk 0:02:11]}  Rd4+ {[%clk 0:00:29]} 31. Ke3 {[%clk 0:02:11]}  R4d3+ {[%clk 0:00:28]} 32. Ke4 {[%clk 0:02:11]}  f5+ {[%clk 0:00:21]} 33. Ke5 {[%clk 0:02:11]}  Rd7 {[%clk 0:00:18]} 34. Rxd7 {[%clk 0:02:04]}  Rxd7 {[%clk 0:00:18]} 35. Kf6 {[%clk 0:02:05]}  Rf7+ {[%clk 0:00:18]} 36. Kg5 {[%clk 0:02:04]}  Kg7 {[%clk 0:00:17]} 37. f4 {[%clk 0:02:02]}  Re7 {[%clk 0:00:16]} 38. g4 {[%clk 0:02:01]}  fxg4 {[%clk 0:00:16]} 39. Kxg4 {[%clk 0:02:02]}  h6 {[%clk 0:00:16]} 40. Ra6 {[%clk 0:02:01]}  Rf7 {[%clk 0:00:16]} 41. Rb6 {[%clk 0:02:01]}  h5+ {[%clk 0:00:15]} 42. Kg3 {[%clk 0:02:00]}  Kh6 {[%clk 0:00:15]} 43. Ra6 {[%clk 0:01:59]}  Kg7 {[%clk 0:00:15]} 44. Rb6 {[%clk 0:01:59]}  Rf6 {[%clk 0:00:15]} 45. Rb7+ {[%clk 0:01:59]}  Kh6 {[%clk 0:00:15]} 46. Rb8 {[%clk 0:01:59]}  Rc6 {[%clk 0:00:15]} 47. Rb3 {[%clk 0:01:59]}  Rc5 {[%clk 0:00:14]} 48. Ra3 {[%clk 0:01:58]}  Rc4 {[%clk 0:00:14]} 49. Rb3 {[%clk 0:01:58]}  Ra4 {[%clk 0:00:13]} 50. Rc3 {[%clk 0:01:58]}  Ra1 {[%clk 0:00:13]} 51. Rc6 {[%clk 0:01:56]}  Rg1+ {[%clk 0:00:12]} 52. Kf2 {[%clk 0:01:56]}  Rg4 {[%clk 0:00:12]} 53. Kf3 {[%clk 0:01:56]}  Rg1 {[%clk 0:00:12]} 54. Kf2 {[%clk 0:01:56]}  Rd1 {[%clk 0:00:12]} 55. f5 {[%clk 0:01:55]}  Kg5 {[%clk 0:00:09]} 56. fxg6 {[%clk 0:01:55]}  Rd7 {[%clk 0:00:10]} 57. Kg3 {[%clk 0:01:53]}  Rg7 {[%clk 0:00:09]} 58. Rc5+ {[%clk 0:01:53]}  Kxg6 {[%clk 0:00:09]} 59. Kh4 {[%clk 0:01:54]}  Kf7 {[%clk 0:00:09]} 60. Rxh5 {[%clk 0:01:54]}  Kg6 {[%clk 0:00:10]} 61. Ra5 {[%clk 0:01:54]}  Rh7+ {[%clk 0:00:10]} 62. Kg4 {[%clk 0:01:54]}  Rf7 {[%clk 0:00:10]} 63. Ra6+ {[%clk 0:01:54]}  Rf6 {[%clk 0:00:10]} 64. Ra8 {[%clk 0:01:54]}  Re6 {[%clk 0:00:10]} 65. Kf4 {[%clk 0:01:54]}  Rf6+ {[%clk 0:00:10]} 66. Ke5 {[%clk 0:01:54]}  Rf5+ {[%clk 0:00:10]} 67. Ke4 {[%clk 0:01:55]}  Rf6 {[%clk 0:00:11]} 68. Rg8+ {[%clk 0:01:55]}  Kf7 {[%clk 0:00:11]} 69. Rg1 {[%clk 0:01:56]}  Re6+ {[%clk 0:00:11]} 70. Kd5 {[%clk 0:01:56]}  Rf6 {[%clk 0:00:11]} 71. Ra1 {[%clk 0:01:56]}  Kg6 {[%clk 0:00:11]} 72. Ke5 {[%clk 0:01:56]}  Rf5+ {[%clk 0:00:11]} 73. Kd6 {[%clk 0:01:56]}  Rf6+ {[%clk 0:00:11]} 74. Kd5 {[%clk 0:01:57]}  Rf5+ {[%clk 0:00:12]} 75. Ke4 {[%clk 0:01:58]}  Rf6 {[%clk 0:00:11]} 76. Ra7 {[%clk 0:01:58]}  Rf7 {[%clk 0:00:11]} 77. Ra5 {[%clk 0:01:57]}  Re7+ {[%clk 0:00:11]} 78. Kf4 {[%clk 0:01:58]}  Rf7+ {[%clk 0:00:11]} 79. Kg4 {[%clk 0:01:58]}  Rf6 {[%clk 0:00:11]} 80. Rb5 {[%clk 0:01:59]}  Re6 {[%clk 0:00:11]} 81. Rg5+ {[%clk 0:01:55]}  Kf6 {[%clk 0:00:11]} 82. Rh5 {[%clk 0:01:53]}  Re4+ {[%clk 0:00:11]} 83. Kf3 {[%clk 0:01:54]}  Re5 {[%clk 0:00:11]} 84. Rh8 {[%clk 0:01:54]}  Kg7 {[%clk 0:00:11]} 85. Ra8 {[%clk 0:01:53]}  Kf6 {[%clk 0:00:11]} 86. Ra6+ {[%clk 0:01:53]}  Re6 {[%clk 0:00:11]} 87. Ra4 {[%clk 0:01:54]}  Re5 {[%clk 0:00:11]} 88. Kg4 {[%clk 0:01:54]}  Re6 {[%clk 0:00:11]} 89. Rf4+ {[%clk 0:01:51]}  Kg6 {[%clk 0:00:11]} 90. Ra4 {[%clk 0:01:50]}  Rd6 {[%clk 0:00:11]} 91. Kf4 {[%clk 0:01:48]}  Rf6+ {[%clk 0:00:11]} 92. Ke4 {[%clk 0:01:48]}  Re6+ {[%clk 0:00:11]} 93. Kd5 {[%clk 0:01:48]}  Rf6 {[%clk 0:00:11]} 94. Rg4+ {[%clk 0:01:48]}  Kf5 {[%clk 0:00:11]} 95. Rg1 {[%clk 0:01:48]}  Kf4 {[%clk 0:00:09]} 96. Kd4 {[%clk 0:01:48]}  Kf5 {[%clk 0:00:08]} 97. Kd5 {[%clk 0:01:47]}  Kf4 {[%clk 0:00:08]} 98. Rf1+ {[%clk 0:01:48]}  Kg5 {[%clk 0:00:08]} 99. Rxf6 {[%clk 0:01:47]}  Kxf6 {[%clk 0:00:08]} 1/2-1/2


[Site "https://www.chess.com"]